[Event "*** Titled Tuesday Blitz"]
[Site "Chess.com"]
[Date "2019.07.02"]
[Round "4"]
[White "Gubajdullin"]
[Black "ram1zan"]
[Result "0-1"]
[WhiteElo "2601"]
[BlackElo "2783"]
[TimeControl "180+2"]
[EndTime "13:53:58 PDT"]
[Termination "ram1zan won by resignation"]

1. d4 {[%clk 0:03:00.5]} 1... Nf6 {[%clk 0:02:53.2]} 2. Bf4 {[%clk 0:02:58.7]}
2... d5 {[%clk 0:02:51.8]} 3. e3 {[%clk 0:02:59.5]} 3... c5 {[%clk 0:02:53]} 4.
c3 {[%clk 0:02:58.7]} 4... Nc6 {[%clk 0:02:53.6]} 5. Nd2 {[%clk 0:02:58.9]} 5...
Bf5 {[%clk 0:02:47.8]} 6. Qb3 {[%clk 0:02:58.7]} 6... Qb6 {[%clk 0:02:48.1]} 7.
dxc5 {[%clk 0:02:59.4]} 7... Qxb3 {[%clk 0:02:48.3]} 8. axb3 {[%clk 0:02:59.6]}
8... e5 {[%clk 0:02:45.2]} 9. Bg3 {[%clk 0:03:00.1]} 9... Bxc5 {[%clk
0:02:42.6]} 10. b4 {[%clk 0:02:53.3]} 10... Bd6 {[%clk 0:02:43.2]} 11. Ngf3
{[%clk 0:02:54.3]} 11... Nh5 {[%clk 0:02:42]} 12. b5 {[%clk 0:02:27.9]} 12...
Nxg3 {[%clk 0:02:41.1]} 13. bxc6 {[%clk 0:02:19.5]} 13... Nxh1 {[%clk 0:02:22]}
14. cxb7 {[%clk 0:02:15.9]} 14... Rb8 {[%clk 0:02:17.5]} 15. Rxa7 {[%clk
0:02:07.6]} 15... O-O {[%clk 0:01:53.7]} 16. Bb5 {[%clk 0:01:37.6]} 16... Bc5
{[%clk 0:01:50.8]} 17. Ra2 {[%clk 0:01:36.7]} 17... Rxb7 {[%clk 0:01:50.3]} 18.
Bc6 {[%clk 0:01:37.4]} 18... Ra7 {[%clk 0:01:43.1]} 19. Rxa7 {[%clk 0:01:33.7]}
19... Bxa7 {[%clk 0:01:45]} 20. Bxd5 {[%clk 0:01:27.4]} 20... Rd8 {[%clk
0:01:43.7]} 21. c4 {[%clk 0:01:15.8]} 21... Be6 {[%clk 0:01:44.7]} 22. Bxe6
{[%clk 0:01:12.6]} 22... fxe6 {[%clk 0:01:46.6]} 23. b4 {[%clk 0:01:04.4]} 23...
Kf8 {[%clk 0:01:33.3]} 24. Nxe5 {[%clk 0:00:53.1]} 24... Nxf2 {[%clk 0:01:12.8]}
25. Nc6 {[%clk 0:00:53.5]} 25... Nd3+ {[%clk 0:01:13.7]} 26. Ke2 {[%clk
0:00:54]} 26... Rd7 {[%clk 0:00:49.4]} 27. Nb3 {[%clk 0:00:31.7]} 27... Nb2
{[%clk 0:00:46.5]} 28. c5 {[%clk 0:00:30.9]} 28... Na4 {[%clk 0:00:41.8]} 29.
Nba5 {[%clk 0:00:20.3]} 29... Nc3+ {[%clk 0:00:41.8]} 30. Kf3 {[%clk 0:00:19.3]}
30... Rf7+ {[%clk 0:00:31.9]} 31. Kg4 {[%clk 0:00:19.8]} 31... Ke8 {[%clk
0:00:31.5]} 32. Nd4 {[%clk 0:00:15.2]} 32... Nd5 {[%clk 0:00:29.7]} 33. Nac6
{[%clk 0:00:11.5]} 33... Nxe3+ {[%clk 0:00:28.2]} 34. Kh3 {[%clk 0:00:12.5]}
34... Nd5 {[%clk 0:00:25]} 35. Nxe6 {[%clk 0:00:11.9]} 35... Kd7 {[%clk
0:00:26.4]} 36. Ncd8 {[%clk 0:00:10]} 36... Re7 {[%clk 0:00:18.3]} 37. c6+
{[%clk 0:00:10.9]} 37... Kd6 {[%clk 0:00:19.2]} 38. Ng5 {[%clk 0:00:04.5]} 38...
Nxb4 {[%clk 0:00:14.9]} 39. Nxh7 {[%clk 0:00:02.1]} 39... Nxc6 {[%clk
0:00:14.2]} 40. Nxc6 {[%clk 0:00:02.8]} 40... Kxc6 {[%clk 0:00:16.1]} 41. Kg4
{[%clk 0:00:03.6]} 41... Kd6 {[%clk 0:00:17]} 42. Kf5 {[%clk 0:00:04.5]} 42...
Re2 {[%clk 0:00:15.9]} 43. g4 {[%clk 0:00:04.1]} 43... Rxh2 {[%clk 0:00:17]} 44.
Kg6 {[%clk 0:00:04.4]} 44... Bd4 {[%clk 0:00:17.1]} 45. Ng5 {[%clk 0:00:03.8]}
45... Kd5 {[%clk 0:00:18.4]} 46. Nf7 {[%clk 0:00:04.2]} 46... Rg2 {[%clk
0:00:19.1]} 47. g5 {[%clk 0:00:05.3]} 47... Ke6 {[%clk 0:00:19]} 48. Nd8+ {[%clk
0:00:05.8]} 48... Kd7 {[%clk 0:00:20.4]} 49. Nf7 {[%clk 0:00:06.5]} 49... Ke7
{[%clk 0:00:21.9]} 50. Nh8 {[%clk 0:00:06.1]} 50... Ba1 {[%clk 0:00:21.4]} 51.
Nf7 {[%clk 0:00:06.5]} 51... Bf6 {[%clk 0:00:22.9]} 52. Nh8 {[%clk 0:00:02.2]}
52... Rxg5+ {[%clk 0:00:23.4]} 53. Kh7 {[%clk 0:00:03.3]} 53... Rh5+ {[%clk
0:00:24.9]} 54. Kg8 {[%clk 0:00:04.4]} 54... Rxh8+ {[%clk 0:00:26.8]} 55. Kxh8
{[%clk 0:00:05]} 55... g5+ {[%clk 0:00:28.7]} 0-1

[Event "*** Titled Tuesday Blitz"]
[Site "Chess.com"]
[Date "2019.07.02"]
[Round "4"]
[White "STARMATEcc"]
[Black "WeAintSurePal"]
[Result "1-0"]
[WhiteElo "2545"]
[BlackElo "2326"]
[TimeControl "180+2"]
[EndTime "13:53:58 PDT"]
[Termination "STARMATEcc won by resignation"]

1. e4 {[%clk 0:02:52.3]} 1... c6 {[%clk 0:02:59.3]} 2. Nc3 {[%clk 0:02:46.7]}
2... d5 {[%clk 0:02:52.6]} 3. Nf3 {[%clk 0:02:47.9]} 3... dxe4 {[%clk
0:02:51.7]} 4. Nxe4 {[%clk 0:02:49.1]} 4... Nf6 {[%clk 0:02:52.9]} 5. Nxf6+
{[%clk 0:02:50]} 5... exf6 {[%clk 0:02:54.8]} 6. d4 {[%clk 0:02:50.7]} 6... Bd6
{[%clk 0:02:56.3]} 7. c3 {[%clk 0:02:29.1]} 7... O-O {[%clk 0:02:55.2]} 8. Bd3
{[%clk 0:02:30.9]} 8... Re8+ {[%clk 0:02:55.2]} 9. Be3 {[%clk 0:02:32]} 9... Nd7
{[%clk 0:02:56.3]} 10. Qc2 {[%clk 0:02:32.5]} 10... Nf8 {[%clk 0:02:57.9]} 11.
O-O-O {[%clk 0:02:33.3]} 11... Be6 {[%clk 0:02:57.8]} 12. c4 {[%clk 0:02:31.9]}
12... b5 {[%clk 0:02:49.5]} 13. d5 {[%clk 0:02:30]} 13... cxd5 {[%clk
0:02:49.1]} 14. c5 {[%clk 0:02:27.9]} 14... Rc8 {[%clk 0:02:49]} 15. Kb1 {[%clk
0:02:28.8]} 15... a6 {[%clk 0:02:39.1]} 16. Rc1 {[%clk 0:02:24.1]} 16... Be5
{[%clk 0:02:25.1]} 17. Rhd1 {[%clk 0:02:12.9]} 17... d4 {[%clk 0:02:18.5]} 18.
Nxd4 {[%clk 0:01:57.8]} 18... Bxd4 {[%clk 0:02:18.1]} 19. Bxd4 {[%clk
0:01:58.8]} 19... Ng6 {[%clk 0:02:08.2]} 20. Be3 {[%clk 0:01:57.1]} 20... Qa5
{[%clk 0:02:06]} 21. b3 {[%clk 0:01:52.1]} 21... Red8 {[%clk 0:01:55.9]} 22. c6
{[%clk 0:01:49.1]} 22... Rxd3 {[%clk 0:01:26]} 23. Qxd3 {[%clk 0:01:45.6]} 23...
Ne5 {[%clk 0:01:25]} 24. Qd4 {[%clk 0:01:40.2]} 24... h6 {[%clk 0:01:13.5]} 25.
c7 {[%clk 0:01:36.4]} 25... Kh7 {[%clk 0:00:54]} 26. Kb2 {[%clk 0:01:35.7]}
26... b4 {[%clk 0:00:47.8]} 27. Bd2 {[%clk 0:01:17.6]} 27... Qa3+ {[%clk
0:00:47.3]} 28. Ka1 {[%clk 0:01:17.5]} 28... Bxb3 {[%clk 0:00:42]} 29. Qb2
{[%clk 0:01:18]} 29... Qxb2+ {[%clk 0:00:42.5]} 30. Kxb2 {[%clk 0:01:18.9]}
30... Bxd1 {[%clk 0:00:43.8]} 31. Rxd1 {[%clk 0:01:18.7]} 31... Rxc7 {[%clk
0:00:39.8]} 32. Bxb4 {[%clk 0:01:19.7]} 32... Rb7 {[%clk 0:00:41.2]} 33. Kc3
{[%clk 0:01:17.2]} 33... Kg6 {[%clk 0:00:39.4]} 34. Rd6 {[%clk 0:01:16.9]} 34...
Rc7+ {[%clk 0:00:31.3]} 35. Kb3 {[%clk 0:01:11.9]} 35... Nc6 {[%clk 0:00:23.6]}
36. Bc3 {[%clk 0:01:07.3]} 36... Rb7+ {[%clk 0:00:21.7]} 37. Ka4 {[%clk
0:00:59.7]} 37... Rc7 {[%clk 0:00:19.5]} 38. h3 {[%clk 0:00:56.9]} 38... Kf5
{[%clk 0:00:19.4]} 39. Bb2 {[%clk 0:00:52.9]} 39... a5 {[%clk 0:00:16.7]} 40.
Bc3 {[%clk 0:00:51.7]} 40... Ne5 {[%clk 0:00:16.3]} 41. Bxa5 {[%clk 0:00:50.3]}
41... Ra7 {[%clk 0:00:17.8]} 42. Rd5 {[%clk 0:00:51.1]} 42... Ke6 {[%clk
0:00:18.7]} 43. Rb5 {[%clk 0:00:51.9]} 43... Nc4 {[%clk 0:00:18.9]} 44. Kb4
{[%clk 0:00:53]} 44... Nd6 {[%clk 0:00:19.4]} 45. Rb6 {[%clk 0:00:53.8]} 45...
Kd5 {[%clk 0:00:20.9]} 46. a4 {[%clk 0:00:52.8]} 46... Re7 {[%clk 0:00:20.2]}
47. Kc3 {[%clk 0:00:51.6]} 47... Re4 {[%clk 0:00:20.8]} 48. Bb4 {[%clk
0:00:52.2]} 48... Re6 {[%clk 0:00:21.6]} 49. Rxd6+ {[%clk 0:00:49.9]} 49... Rxd6
{[%clk 0:00:22.9]} 50. Bxd6 {[%clk 0:00:51]} 50... Kxd6 {[%clk 0:00:24.8]} 51.
Kb4 {[%clk 0:00:50.9]} 51... Kc6 {[%clk 0:00:26.2]} 52. a5 {[%clk 0:00:52.3]}
52... f5 {[%clk 0:00:24.8]} 53. f4 {[%clk 0:00:53.5]} 53... g5 {[%clk
0:00:24.9]} 54. g3 {[%clk 0:00:53.8]} 54... f6 {[%clk 0:00:24.2]} 55. h4 {[%clk
0:00:55]} 55... h5 {[%clk 0:00:21.4]} 56. Kc4 {[%clk 0:00:55.1]} 56... Kb7
{[%clk 0:00:18.4]} 57. Kd5 {[%clk 0:00:56]} 57... gxf4 {[%clk 0:00:19.5]} 58.
gxf4 {[%clk 0:00:56.8]} 58... Ka6 {[%clk 0:00:21.4]} 59. Ke6 {[%clk 0:00:58.2]}
59... Kxa5 {[%clk 0:00:23.3]} 60. Kxf5 {[%clk 0:00:58.5]} 60... Kb5 {[%clk
0:00:25.2]} 61. Kxf6 {[%clk 0:00:59.6]} 61... Kc5 {[%clk 0:00:27.1]} 62. Kg6
{[%clk 0:01:01]} 62... Kd5 {[%clk 0:00:29]} 63. f5 {[%clk 0:01:02.7]} 63... Ke5
{[%clk 0:00:30.2]} 64. f6 {[%clk 0:01:04.1]} 64... Kf4 {[%clk 0:00:32]} 65. f7
{[%clk 0:01:05.1]} 65... Kg4 {[%clk 0:00:33.8]} 66. f8=Q {[%clk 0:01:07]} 66...
Kxh4 {[%clk 0:00:35.7]} 67. Qf4+ {[%clk 0:01:01.8]} 67... Kh3 {[%clk 0:00:36.8]}
68. Kxh5 {[%clk 0:01:03]} 1-0

[Event "*** Titled Tuesday Blitz"]
[Site "Chess.com"]
[Date "2019.07.02"]
[Round "4"]
[White "BlueWizzard"]
[Black "wnstop"]
[Result "0-1"]
[WhiteElo "2708"]
[BlackElo "2675"]
[TimeControl "180+2"]
[EndTime "13:53:59 PDT"]
[Termination "wnstop won on time"]

1. d4 {[%clk 0:03:01.9]} 1... Nf6 {[%clk 0:02:58.2]} 2. Nf3 {[%clk 0:03:03.2]}
2... g6 {[%clk 0:02:59.3]} 3. Bg5 {[%clk 0:03:00.8]} 3... Bg7 {[%clk 0:03:00.5]}
4. e3 {[%clk 0:03:02.4]} 4... O-O {[%clk 0:03:01.2]} 5. Bd3 {[%clk 0:03:04]}
5... d6 {[%clk 0:03:02.3]} 6. c3 {[%clk 0:03:05.5]} 6... c5 {[%clk 0:03:01.3]}
7. Nbd2 {[%clk 0:03:06.8]} 7... Nc6 {[%clk 0:02:58.6]} 8. O-O {[%clk 0:03:06.9]}
8... b6 {[%clk 0:02:59.1]} 9. d5 {[%clk 0:03:00.9]} 9... Ne5 {[%clk 0:02:48.2]}
10. Nxe5 {[%clk 0:02:59]} 10... dxe5 {[%clk 0:02:50.1]} 11. e4 {[%clk
0:02:59.8]} 11... Ne8 {[%clk 0:02:50.6]} 12. a4 {[%clk 0:02:57.9]} 12... Nd6
{[%clk 0:02:50.7]} 13. Qe2 {[%clk 0:02:58.8]} 13... a6 {[%clk 0:02:42.1]} 14. b4
{[%clk 0:02:57]} 14... h6 {[%clk 0:02:33.2]} 15. Be3 {[%clk 0:02:56.5]} 15...
cxb4 {[%clk 0:02:33.4]} 16. cxb4 {[%clk 0:02:58.1]} 16... f5 {[%clk 0:02:34.5]}
17. f3 {[%clk 0:02:58]} 17... e6 {[%clk 0:02:25.9]} 18. a5 {[%clk 0:02:52.6]}
18... b5 {[%clk 0:01:53]} 19. Rac1 {[%clk 0:02:48]} 19... exd5 {[%clk
0:01:52.2]} 20. Bb6 {[%clk 0:02:41.8]} 20... Qf6 {[%clk 0:01:46.9]} 21. exd5
{[%clk 0:02:42.7]} 21... Bb7 {[%clk 0:01:45]} 22. Nb3 {[%clk 0:02:38.5]} 22...
Bxd5 {[%clk 0:01:45.7]} 23. Nc5 {[%clk 0:02:39.9]} 23... Rf7 {[%clk 0:01:32.4]}
24. Qd2 {[%clk 0:02:34.1]} 24... Nc4 {[%clk 0:00:59]} 25. Bxc4 {[%clk
0:02:25.9]} 25... Bxc4 {[%clk 0:01:00.9]} 26. Rxc4 {[%clk 0:02:27]} 26... bxc4
{[%clk 0:01:02.8]} 27. Qd5 {[%clk 0:02:28.3]} 27... Re8 {[%clk 0:00:58.9]} 28.
Qxc4 {[%clk 0:02:25.6]} 28... e4 {[%clk 0:00:55.2]} 29. Nxa6 {[%clk 0:02:09.8]}
29... e3 {[%clk 0:00:53.3]} 30. Nc7 {[%clk 0:02:06.9]} 30... e2 {[%clk 0:00:41]}
31. Nxe8 {[%clk 0:01:49.6]} 31... exf1=Q+ {[%clk 0:00:39.2]} 32. Kxf1 {[%clk
0:01:51.5]} 32... Qa1+ {[%clk 0:00:36.5]} 33. Kf2 {[%clk 0:01:48.8]} 33... Qb2+
{[%clk 0:00:37.5]} 34. Kg1 {[%clk 0:01:44]} 34... Qa1+ {[%clk 0:00:35.7]} 35.
Kf2 {[%clk 0:01:31.8]} 35... Qb2+ {[%clk 0:00:36.8]} 36. Kf1 {[%clk 0:00:55.4]}
36... Bc3 {[%clk 0:00:28.8]} 37. Qe6 {[%clk 0:00:23.9]} 37... Qc1+ {[%clk
0:00:21.4]} 38. Kf2 {[%clk 0:00:23.8]} 38... Qd2+ {[%clk 0:00:19.5]} 39. Kg3
{[%clk 0:00:16]} 39... Qe1+ {[%clk 0:00:15.9]} 40. Qxe1 {[%clk 0:00:15.9]} 40...
Bxe1+ {[%clk 0:00:17.8]} 41. Kh3 {[%clk 0:00:09.2]} 41... Rf8 {[%clk 0:00:11.9]}
42. Nc7 {[%clk 0:00:07.8]} 42... Bxb4 {[%clk 0:00:12.7]} 43. a6 {[%clk
0:00:09.1]} 43... Bd6 {[%clk 0:00:13.4]} 44. Nb5 {[%clk 0:00:06.6]} 44... Be5
{[%clk 0:00:03.8]} 45. Bc7 {[%clk 0:00:08.5]} 45... Ra8 {[%clk 0:00:03.3]} 46.
Bxe5 {[%clk 0:00:02.4]} 46... Rxa6 {[%clk 0:00:04.7]} 47. Nd6 {[%clk 0:00:03.8]}
47... Kh7 {[%clk 0:00:04.6]} 48. f4 {[%clk 0:00:02.8]} 48... Ra3+ {[%clk
0:00:05.5]} 49. g3 {[%clk 0:00:02.6]} 49... Ra2 {[%clk 0:00:06.9]} 0-1

[Event "*** Titled Tuesday Blitz"]
[Site "Chess.com"]
[Date "2019.07.02"]
[Round "4"]
[White "Grischuk"]
[Black "ChessWeebs"]
[Result "0-1"]
[WhiteElo "3076"]
[BlackElo "2798"]
[TimeControl "180+2"]
[EndTime "13:54:00 PDT"]
[Termination "ChessWeebs won by resignation"]

1. e4 {[%clk 0:02:41.9]} 1... e6 {[%clk 0:02:59.7]} 2. d4 {[%clk 0:02:42.1]}
2... d5 {[%clk 0:03:01.3]} 3. e5 {[%clk 0:02:42.8]} 3... c5 {[%clk 0:03:02.3]}
4. c3 {[%clk 0:02:43.7]} 4... Nc6 {[%clk 0:03:03.2]} 5. Nf3 {[%clk 0:02:45.1]}
5... Bd7 {[%clk 0:03:03]} 6. a3 {[%clk 0:02:45.1]} 6... cxd4 {[%clk 0:03:03.7]}
7. cxd4 {[%clk 0:02:46.1]} 7... Nge7 {[%clk 0:03:04.8]} 8. Bd3 {[%clk
0:02:29.8]} 8... Qb6 {[%clk 0:02:52.6]} 9. Bc2 {[%clk 0:02:30.6]} 9... Rc8
{[%clk 0:02:43.4]} 10. O-O {[%clk 0:02:28.3]} 10... Na5 {[%clk 0:02:44.3]} 11.
Nc3 {[%clk 0:02:26.1]} 11... Nc4 {[%clk 0:02:44]} 12. Rb1 {[%clk 0:02:24.5]}
12... Nc6 {[%clk 0:02:25.4]} 13. h4 {[%clk 0:01:58.4]} 13... Be7 {[%clk
0:02:24.6]} 14. Re1 {[%clk 0:01:59]} 14... h6 {[%clk 0:01:58.8]} 15. h5 {[%clk
0:01:58.8]} 15... Qa6 {[%clk 0:01:52.9]} 16. Nh2 {[%clk 0:01:38.3]} 16... b5
{[%clk 0:01:49.7]} 17. Qg4 {[%clk 0:01:38.9]} 17... Bf8 {[%clk 0:01:49.9]} 18.
Nf3 {[%clk 0:00:54.1]} 18... b4 {[%clk 0:01:20.5]} 19. Ne2 {[%clk 0:00:52.8]}
19... Qb6 {[%clk 0:01:08.8]} 20. Rd1 {[%clk 0:00:46.7]} 20... Ne7 {[%clk
0:00:55.1]} 21. Bd3 {[%clk 0:00:44.4]} 21... Nf5 {[%clk 0:00:44.3]} 22. axb4
{[%clk 0:00:44.8]} 22... Qxb4 {[%clk 0:00:43.6]} 23. b3 {[%clk 0:00:45.4]} 23...
Na3 {[%clk 0:00:35.3]} 24. Ra1 {[%clk 0:00:36.1]} 24... Nb5 {[%clk 0:00:13.3]}
25. Rb1 {[%clk 0:00:15.8]} 25... Na3 {[%clk 0:00:09.7]} 26. Rb2 {[%clk
0:00:16.6]} 26... Qb6 {[%clk 0:00:08.6]} 27. Bd2 {[%clk 0:00:13.4]} 27... Nb5
{[%clk 0:00:08.2]} 28. Ra2 {[%clk 0:00:11.3]} 28... Na3 {[%clk 0:00:06.7]} 29.
Rxa3 {[%clk 0:00:07.1]} 29... Bxa3 {[%clk 0:00:07.2]} 30. Bxf5 {[%clk
0:00:08.8]} 30... exf5 {[%clk 0:00:09.1]} 31. Qxg7 {[%clk 0:00:09.8]} 31... Rf8
{[%clk 0:00:05.9]} 32. Bxh6 {[%clk 0:00:10.1]} 32... Qxb3 {[%clk 0:00:06]} 33.
Ra1 {[%clk 0:00:09.2]} 33... Qb2 {[%clk 0:00:06.3]} 34. Rxa3 {[%clk 0:00:09.4]}
34... Qxa3 {[%clk 0:00:08.2]} 35. Nf4 {[%clk 0:00:09.8]} 35... Be6 {[%clk
0:00:08.6]} 36. Kh2 {[%clk 0:00:08.2]} 36... Qe7 {[%clk 0:00:09.8]} 37. Ng5
{[%clk 0:00:08.4]} 37... Kd7 {[%clk 0:00:09.7]} 38. Nh7 {[%clk 0:00:06.7]} 38...
Rh8 {[%clk 0:00:10.3]} 39. Nf6+ {[%clk 0:00:06.2]} 39... Kc6 {[%clk 0:00:11.9]}
40. Bg5 {[%clk 0:00:06.4]} 40... Kb7 {[%clk 0:00:06]} 41. h6 {[%clk 0:00:04.9]}
41... Ka8 {[%clk 0:00:04.4]} 42. h7 {[%clk 0:00:04.8]} 42... Qf8 {[%clk
0:00:05.4]} 43. Nxe6 {[%clk 0:00:02.6]} 43... fxe6 {[%clk 0:00:05.4]} 44. Qd7
{[%clk 0:00:04.2]} 44... Qd8 {[%clk 0:00:06]} 45. Qxe6 {[%clk 0:00:05.3]} 45...
Qc7 {[%clk 0:00:07.1]} 46. Qxf5 {[%clk 0:00:05.4]} 46... a5 {[%clk 0:00:07.7]}
47. Bf4 {[%clk 0:00:03.3]} 47... a4 {[%clk 0:00:08.2]} 48. e6 {[%clk 0:00:04.8]}
48... Qb7 {[%clk 0:00:09.8]} 49. Qd3 {[%clk 0:00:04.7]} 49... Rcf8 {[%clk
0:00:09.6]} 50. Be5 {[%clk 0:00:04.6]} 50... Rxf6 {[%clk 0:00:10.7]} 51. Bxf6
{[%clk 0:00:05.9]} 51... Qxh7+ {[%clk 0:00:11.9]} 52. Qxh7 {[%clk 0:00:07.2]}
52... Rxh7+ {[%clk 0:00:13.4]} 53. Kg3 {[%clk 0:00:09.1]} 53... a3 {[%clk
0:00:14.6]} 54. e7 {[%clk 0:00:08]} 54... Rxe7 {[%clk 0:00:15.7]} 55. Bxe7
{[%clk 0:00:09.4]} 55... a2 {[%clk 0:00:17.4]} 56. Bf6 {[%clk 0:00:08.8]} 56...
a1=Q {[%clk 0:00:19.3]} 57. f4 {[%clk 0:00:09.6]} 57... Qe1+ {[%clk 0:00:20.3]}
58. Kh3 {[%clk 0:00:09.5]} 58... Qe6+ {[%clk 0:00:20.9]} 0-1

[Event "*** Titled Tuesday Blitz"]
[Site "Chess.com"]
[Date "2019.07.02"]
[Round "4"]
[White "m3alam"]
[Black "Macron20hTF1"]
[Result "1-0"]
[WhiteElo "2364"]
[BlackElo "2240"]
[TimeControl "180+2"]
[EndTime "13:54:02 PDT"]
[Termination "m3alam won by resignation"]

1. Nf3 {[%clk 0:03:01.7]} 1... f5 {[%clk 0:03:00.6]} 2. d4 {[%clk 0:02:39.7]}
2... Nf6 {[%clk 0:03:00.5]} 3. g3 {[%clk 0:02:37.5]} 3... g6 {[%clk 0:03:01.9]}
4. Bg2 {[%clk 0:02:39.2]} 4... Bg7 {[%clk 0:03:03.8]} 5. O-O {[%clk 0:02:40.4]}
5... O-O {[%clk 0:03:05.4]} 6. c4 {[%clk 0:02:30.5]} 6... d6 {[%clk 0:03:06.6]}
7. Nc3 {[%clk 0:02:26.8]} 7... Nc6 {[%clk 0:03:08.2]} 8. d5 {[%clk 0:02:24.2]}
8... Ne5 {[%clk 0:03:09.4]} 9. Nxe5 {[%clk 0:02:21.4]} 9... dxe5 {[%clk
0:03:11.3]} 10. Qb3 {[%clk 0:02:10.3]} 10... h6 {[%clk 0:03:08.2]} 11. Rd1
{[%clk 0:02:06.5]} 11... Kh8 {[%clk 0:03:03]} 12. a4 {[%clk 0:02:03.1]} 12... a6
{[%clk 0:03:00.9]} 13. a5 {[%clk 0:01:59.9]} 13... g5 {[%clk 0:02:58.6]} 14. Be3
{[%clk 0:01:55]} 14... Qe8 {[%clk 0:02:50.6]} 15. Qa3 {[%clk 0:01:50.6]} 15...
Rg8 {[%clk 0:02:28.2]} 16. Bc5 {[%clk 0:01:47.3]} 16... Bf8 {[%clk 0:02:29.2]}
17. b4 {[%clk 0:01:43.1]} 17... f4 {[%clk 0:02:29.3]} 18. Qb2 {[%clk 0:01:40]}
18... Bf5 {[%clk 0:02:01.4]} 19. e4 {[%clk 0:01:35.3]} 19... Bd7 {[%clk
0:01:51.3]} 20. Nb1 {[%clk 0:01:29.4]} 20... Bg7 {[%clk 0:01:41.9]} 21. Nd2
{[%clk 0:01:24.8]} 21... g4 {[%clk 0:01:24.6]} 22. Qxe5 {[%clk 0:01:21.4]} 22...
f3 {[%clk 0:01:21.9]} 23. Bf1 {[%clk 0:01:16.9]} 23... Nh7 {[%clk 0:01:16.8]}
24. Qxc7 {[%clk 0:01:11.5]} 24... Ng5 {[%clk 0:01:11.4]} 25. Ra3 {[%clk
0:01:05.2]} 25... Rc8 {[%clk 0:01:00]} 26. Qxb7 {[%clk 0:01:02.2]} 26... Qh5
{[%clk 0:00:54.1]} 27. Qxd7 {[%clk 0:00:54.6]} 27... Nh3+ {[%clk 0:00:55]} 28.
Bxh3 {[%clk 0:00:46.2]} 28... Qxh3 {[%clk 0:00:48.9]} 29. Rxf3 {[%clk
0:00:44.8]} 29... Bf6 {[%clk 0:00:16.1]} 30. Rxf6 {[%clk 0:00:40.6]} 30... exf6
{[%clk 0:00:16.6]} 31. Bd4 {[%clk 0:00:42]} 31... Rcf8 {[%clk 0:00:16.7]} 32. c5
{[%clk 0:00:41.4]} 32... Qh5 {[%clk 0:00:15.8]} 33. Nf1 {[%clk 0:00:39.9]} 33...
Rf7 {[%clk 0:00:15.8]} 34. Qd6 {[%clk 0:00:39.7]} 34... Qg6 {[%clk 0:00:16.6]}
35. Qf4 {[%clk 0:00:37.2]} 35... Kh7 {[%clk 0:00:16.3]} 36. c6 {[%clk
0:00:37.1]} 36... Re8 {[%clk 0:00:15.7]} 37. Nd2 {[%clk 0:00:36.1]} 37... f5
{[%clk 0:00:11.1]} 38. e5 {[%clk 0:00:36]} 38... Rd8 {[%clk 0:00:11]} 39. d6
{[%clk 0:00:36.9]} 39... Qe6 {[%clk 0:00:11.2]} 40. c7 {[%clk 0:00:37.4]} 40...
Rc8 {[%clk 0:00:11.7]} 41. Bc5 {[%clk 0:00:29]} 41... Re8 {[%clk 0:00:11.1]} 42.
Nc4 {[%clk 0:00:29.8]} 42... Qd7 {[%clk 0:00:05.3]} 43. Nb6 {[%clk 0:00:25.2]}
43... Qc6 {[%clk 0:00:05.6]} 44. c8=Q {[%clk 0:00:25.6]} 44... Rxc8 {[%clk
0:00:06.1]} 45. Nxc8 {[%clk 0:00:26.4]} 45... Qa4 {[%clk 0:00:07]} 46. Rd2
{[%clk 0:00:17.7]} 46... Qa1+ {[%clk 0:00:06.4]} 47. Kg2 {[%clk 0:00:18.8]}
47... Qa4 {[%clk 0:00:06.8]} 48. e6 {[%clk 0:00:19.2]} 48... Qc6+ {[%clk
0:00:07.5]} 49. f3 {[%clk 0:00:19.8]} 49... Rf6 {[%clk 0:00:06.4]} 50. d7 {[%clk
0:00:19.7]} 50... Rxe6 {[%clk 0:00:05.6]} 51. Qxf5+ {[%clk 0:00:20]} 51... Kg7
{[%clk 0:00:05.5]} 52. Qxe6 {[%clk 0:00:20.8]} 52... Qxf3+ {[%clk 0:00:03.6]}
53. Kg1 {[%clk 0:00:21.4]} 53... Qe3+ {[%clk 0:00:03.1]} 54. Qxe3 {[%clk
0:00:21]} 1-0